fUSD/lending_fUSD_20250629
["ID","MTS","AMOUNT","RATE_DAILY","PERIOD"]
[368448533,1751181078371,-1895.51,0.00028739,3]
[368448534,1751181078380,-677.85,0.00028739,3]
[368448535,1751181078390,-650.26,0.00028739,3]
[368448536,1751181078399,-2282.03,0.00028739,3]
[368448537,1751181078411,-3418.63,0.00028739,3]
[368448538,1751181078421,-3064.55,0.00028739,3]
[368448539,1751181078431,-2043.99,0.00028739,3]
[368448540,1751181078442,-3853.32,0.00028739,3]
[368448541,1751181078452,-1656.61,0.00028739,3]
[368448542,1751181078461,-5859.61,0.00028739,3]
[368448543,1751181078471,-1440.13,0.00028739,3]
[368448544,1751181078480,-2724.72,0.00028739,3]
[368448545,1751181078490,-1512.8,0.00028739,3]
[368448546,1751181078499,-490.0,0.00028739,3]
[368448547,1751181078509,-1955.67,0.00028739,3]
[368448548,1751181078519,-490.0,0.00028739,3]
[368448549,1751181078529,-23167.41,0.00028739,3]
[368448550,1751181078538,-2515.28,0.00028739,3]
[368448551,1751181078548,-1108.39,0.00028739,3]
[368448552,1751181078558,-2108.69,0.00028739,3]
[368448553,1751181078568,-1355.67,0.00028739,3]
[368448554,1751181078577,-1933.66,0.00028739,3]
[368448555,1751181078588,-570.09,0.00028739,3]
[368448556,1751181078597,-1634.26,0.00028739,3]
[368448557,1751181078607,-3352.06,0.00028739,3]
[368448558,1751181078617,-997.18,0.00028739,3]
[368448559,1751181078626,-511.46,0.00028739,3]
[368448560,1751181078636,-1743.3,0.00028739,3]
[368448561,1751181078646,-880.29,0.00028739,3]
[368448562,1751181078656,-490.0,0.00028739,3]
[368448563,1751181078666,-2397.17,0.00028739,3]
[368448564,1751181078677,-2562.29,0.00028739,3]
[368448565,1751181078687,-521.73,0.00028739,3]
[368448566,1751181078696,-1949.04,0.00028739,3]
[368448567,1751181078706,-2217.26,0.00028739,3]
[368448568,1751181078717,-3245.85,0.00028739,3]
[368448569,1751181078727,-2819.9,0.00028739,3]
[368448570,1751181078736,-2825.64,0.00028739,3]
[368448571,1751181078745,-2118.33,0.00028739,3]
[368448572,1751181078756,-2609.92888,0.0002874,2]
[368448573,1751181078765,-490.0,0.00028751,3]
[368448574,1751181078775,-490.0,0.00028751,3]
[368448575,1751181078785,-516.31,0.00028751,3]
[368448576,1751181078795,-490.0,0.00028751,3]
[368448577,1751181078804,-490.0,0.00028751,3]
[368448578,1751181078814,-490.0,0.00028751,3]
[368448579,1751181078824,-490.0,0.00028751,3]
[368448580,1751181078834,-490.0,0.00028751,3]
[368448581,1751181078844,-490.0,0.00028751,3]
[368448582,1751181078854,-490.0,0.00028751,3]
[368448583,1751181078864,-763.88,0.00028751,3]
[368448584,1751181078874,-5133.23,0.00028751,3]
[368448585,1751181078884,-1269.82,0.00028751,3]
[368448586,1751181078893,-3715.7,0.00028751,3]
[368448587,1751181078903,-2452.96,0.00028751,3]
[368448588,1751181078913,-3160.68,0.00028751,3]
[368448589,1751181078923,-7350.11,0.00028751,3]
[368448590,1751181078933,-490.0,0.00028751,3]
[368448591,1751181078943,-1364.97,0.00028751,3]
[368448592,1751181078954,-3409.97,0.00028751,3]
[368448593,1751181078964,-490.0,0.00028751,3]
[368448594,1751181078974,-2362.35,0.00028751,3]
[368448595,1751181078984,-1972.38,0.00028751,3]
[368448596,1751181078994,-2497.59,0.00028751,3]
[368448597,1751181079004,-8045.04,0.00028751,3]
[368448598,1751181079015,-12001.75,0.00028751,3]
[368448599,1751181079024,-2929.0,0.00028751,3]
[368448600,1751181079035,-3142.55,0.00028751,3]
[368448601,1751181079046,-2510.7,0.00028751,3]
[368448602,1751181079056,-490.0,0.00028751,3]
[368448603,1751181079066,-2398.49,0.00028751,3]
[368448604,1751181079076,-490.0,0.00028751,3]
[368448605,1751181079087,-9605.05,0.00028751,3]
[368448606,1751181079102,-1080.99,0.00028751,3]
[368448607,1751181079112,-4328.81,0.00028751,3]
[368448608,1751181079122,-6177.47,0.00028751,3]
[368448609,1751181079133,-2536.53,0.00028751,3]
[368448610,1751181079143,-2809.45,0.00028751,3]
[368448611,1751181079152,-2344.91,0.00028751,3]
[368448612,1751181079162,-2761.66,0.00028751,3]
[368448613,1751181079173,-3130.55,0.00028751,3]
[368448614,1751181079182,-168.0,0.00028758,2]
[368448615,1751181079192,-600.0,0.00028758,3]
[368448616,1751181079203,-600.0,0.00028758,3]
[368448617,1751181079215,-600.0,0.00028758,3]
[368448618,1751181079225,-600.0,0.00028758,3]
[368448619,1751181079235,-600.0,0.00028758,3]
[368448620,1751181079244,-600.0,0.00028758,3]
[368448621,1751181079254,-600.0,0.00028758,3]
[368448622,1751181079263,-600.0,0.00028758,3]
[368448623,1751181079273,-600.0,0.00028758,3]
[368448624,1751181079283,-600.0,0.00028758,3]
[368448625,1751181079293,-600.0,0.00028758,3]
[368448626,1751181079303,-600.0,0.00028758,3]
[368448627,1751181079312,-600.0,0.00028758,3]
[368448628,1751181079322,-600.0,0.00028758,3]
[368448629,1751181079333,-600.0,0.00028758,3]
[368448630,1751181079343,-600.0,0.00028758,3]
[368448631,1751181079352,-600.0,0.00028758,3]
[368448632,1751181079361,-600.0,0.00028758,3]
[368448633,1751181079371,-600.0,0.00028758,3]
[368448634,1751181079380,-600.0,0.00028758,3]
[368448635,1751181079390,-600.0,0.00028758,2]
[368448636,1751181079399,-600.0,0.00028758,3]
[368448637,1751181079408,-600.0,0.00028758,3]
[368448638,1751181079418,-600.0,0.00028758,3]
[368448639,1751181079427,-600.0,0.00028758,3]
[368448640,1751181079437,-286.92,0.00028767,2]
[368448641,1751181079447,-498.22426185,0.00028768,5]
[368448642,1751181079456,-500.0,0.00028773,5]
[368448643,1751181079466,-301.49169626,0.00028773,5]
[368448644,1751181079475,-381.74382364,0.00028773,5]
[368448645,1751181079485,-500.0,0.00028773,5]
[368448646,1751181079495,-323.05285203,0.00028773,5]
[368448647,1751181079504,-500.0,0.00028773,5]
[368448648,1751181079513,-160.83605704,0.00028773,5]
[368448649,1751181079523,-159.72974989,0.00028773,2]
[368448650,1751181079533,-158.0,0.00028773,2]
[368448651,1751181079543,-500.0,0.00028773,5]
[368448652,1751181079552,-160.72806071,0.00028773,5]
[368448653,1751181079562,-159.81540117,0.00028773,5]
[368448654,1751181079571,-500.59591123,0.00028773,5]
[368448655,1751181079581,-159.727904,0.00028773,2]
[368448656,1751181079591,-159.72974978,0.00028773,5]
[368448657,1751181079600,-536.83959098,0.00028773,5]
[368448658,1751181079610,-164.71044508,0.00028773,5]
[368448659,1751181079619,-160.010898,0.00028773,2]
[368448660,1751181079629,-159.727904,0.00028773,2]
[368448661,1751181079639,-159.727904,0.00028773,2]
[368448662,1751181079648,-159.72974989,0.00028773,2]
[368448663,1751181079657,-159.72974989,0.00028773,2]
[368448664,1751181079667,-159.727904,0.00028773,2]
[368448665,1751181079677,-159.72974989,0.00028773,5]
[368448666,1751181079686,-159.727904,0.00028773,2]
[368448667,1751181079696,-159.72974978,0.00028773,2]
[368448668,1751181079706,-159.72975798,0.00028773,5]
[368448669,1751181079716,-159.727904,0.00028773,2]
[368448670,1751181079726,-159.72974989,0.00028773,2]
[368448671,1751181079735,-500.0,0.00028773,5]
[368448672,1751181079745,-500.0,0.00028773,5]
[368448673,1751181079755,-500.0,0.00028773,5]
[368448674,1751181079764,-500.0,0.00028773,5]
[368448675,1751181079774,-500.0,0.00028773,5]
[368448676,1751181079784,-333.88821153,0.00028773,5]
[368448677,1751181079794,-164.40384505,0.00028773,5]
[368448678,1751181079804,-318.60265004,0.00028773,5]
[368448679,1751181079813,-500.0,0.00028773,5]
[368448680,1751181079823,-161.69126146,0.00028773,5]
[368448681,1751181079833,-500.0,0.00028773,5]
[368448682,1751181079843,-500.0,0.00028773,5]
[368448683,1751181079852,-500.0,0.00028773,5]
[368448684,1751181079862,-481.84897218,0.00028773,5]
[368448685,1751181079872,-500.0,0.00028773,5]
[368448686,1751181079882,-500.0,0.00028773,5]
[368448687,1751181079892,-500.0,0.00028773,5]
[368448688,1751181079902,-453.30319219,0.00028773,5]
[368448689,1751181079912,-500.0,0.00028773,5]
[368448690,1751181079922,-500.0,0.00028773,5]
[368448691,1751181079931,-500.0,0.00028773,5]
[368448692,1751181079942,-160.51874416,0.00028773,5]
[368448693,1751181079951,-500.0,0.00028773,5]
[368448694,1751181079961,-154.03844298,0.00028773,5]
[368448695,1751181079970,-500.0,0.00028773,5]
[368448696,1751181079981,-500.0,0.00028773,5]
[368448697,1751181079992,-500.0,0.00028773,5]
[368448698,1751181080002,-500.0,0.00028773,5]
[368448699,1751181080012,-273.34954719,0.00028773,5]
[368448700,1751181080022,-513.90456754,0.00028773,5]
[368448701,1751181080031,-500.0,0.00028773,5]
[368448702,1751181080041,-238.37635197,0.00028773,5]
[368448703,1751181080051,-160.34924671,0.00028773,5]
[368448704,1751181080061,-500.0,0.00028773,5]
[368448705,1751181080071,-506.84287581,0.00028773,5]
[368448706,1751181080080,-213.14955858,0.00028773,5]
[368448707,1751181080091,-500.0,0.00028789,3]
[368448708,1751181080100,-1855.36,0.00028789,3]
[368448709,1751181080110,-1000.0,0.000288,12]
[368448710,1751181080120,-1000.0,0.000288,12]
[368448711,1751181080130,-1000.0,0.000288,11]
[368448712,1751181080139,-1000.0,0.000288,11]
[368448713,1751181080150,-1000.0,0.000288,10]
[368448714,1751181080159,-1000.0,0.000288,10]
[368448715,1751181080169,-1000.0,0.000288,9]
[368448716,1751181080179,-1000.0,0.000288,9]
[368448717,1751181080188,-1000.0,0.000288,8]
[368448718,1751181080197,-1000.0,0.000288,8]
[368448719,1751181080206,-1055.0,0.000288,7]
[368448720,1751181080216,-1000.0,0.000288,7]
[368448721,1751181080225,-1000.0,0.000288,6]
[368448722,1751181080235,-1000.0,0.000288,6]
[368448723,1751181080244,-1000.0,0.000288,5]
[368448724,1751181080254,-1000.0,0.000288,5]
[368448725,1751181080264,-1000.0,0.000288,4]
[368448726,1751181080273,-1000.0,0.000288,3]
[368448727,1751181080283,-1000.0,0.000288,5]
[368448728,1751181080293,-1000.0,0.000288,6]
[368448729,1751181080302,-1000.0,0.000288,7]
[368448730,1751181080312,-1000.0,0.000288,6]
[368448731,1751181080322,-513.88493317,0.00028802,2]
[368448732,1751181080332,-500.0,0.00028803,2]
[368448733,1751181080342,-850.0,0.00028803,2]
[368448734,1751181080351,-500.0,0.00028803,2]
[368448735,1751181080364,-500.0,0.00028803,2]
[368448736,1751181080374,-540.0,0.00028813,2]
[368448737,1751181080383,-1513.57,0.00028824,3]
[368448738,1751181080392,-490.0,0.00028824,3]
[368448739,1751181080403,-490.0,0.00028824,3]
[368448740,1751181080412,-490.0,0.00028824,3]
[368448741,1751181080422,-490.0,0.00028824,3]
[368448742,1751181080432,-490.0,0.00028824,3]
[368448743,1751181080445,-490.0,0.00028824,3]
[368448744,1751181080455,-490.0,0.00028824,3]
[368448745,1751181080465,-490.0,0.00028824,3]
[368448746,1751181080474,-790.85,0.00028824,3]
[368448747,1751181080484,-724.95,0.00028824,3]
[368448748,1751181080493,-710.94,0.00028824,3]
[368448749,1751181080503,-5336.78,0.00028824,3]
[368448750,1751181080512,-2154.93,0.00028824,3]
[368448751,1751181080522,-642.41,0.00028824,3]
[368448752,1751181080533,-6046.69,0.00028824,3]
[368448753,1751181080542,-272.35473548,0.00028824,3]
[368448754,1751181080552,-2760.67,0.00028824,3]
[368448755,1751181080561,-725.45,0.00028824,3]
[368448756,1751181080571,-11329.43,0.00028824,3]
[368448757,1751181080580,-560.26,0.00028824,3]
[368448758,1751181080590,-2941.14,0.00028824,3]
[368448759,1751181080600,-2672.06,0.00028824,3]
[368448760,1751181080609,-490.0,0.00028824,3]
[368448761,1751181080619,-2094.49,0.00028824,3]
[368448762,1751181080630,-1701.04,0.00028824,3]
[368448763,1751181080640,-1947.43,0.00028824,3]
[368448764,1751181080880,-2546.98,0.00028824,3]
[368448765,1751181080890,-558.81014873,0.00028824,3]
[368448766,1751181080900,-3358.89,0.00028824,3]
[368448767,1751181080910,-490.0,0.00028824,3]
[368448768,1751181080919,-12892.91,0.00028824,3]
[368448769,1751181080928,-490.0,0.00028824,3]
[368448770,1751181080938,-2924.24,0.00028824,3]
[368448771,1751181080948,-2959.67,0.00028824,3]
[368448772,1751181080957,-1484.33,0.00028824,3]
[368448773,1751181080967,-3214.08,0.00028824,3]
[368448774,1751181080978,-2679.23,0.00028824,3]
[368448775,1751181080988,-5243.94,0.00028824,3]
[368448776,1751181080998,-490.0,0.00028824,3]
[368448777,1751181081008,-14928.02,0.00028824,3]
[368448778,1751181081017,-385.41906306,0.00028824,3]
[368448779,1751181081027,-1157.03,0.00028824,3]
[368448780,1751181081037,-1734.56,0.00028824,3]
[368448781,1751181081047,-150.0,0.00028824,2]
[368448782,1751181081056,-5479.42,0.00028824,3]
[368448783,1751181081065,-3307.9,0.00028824,3]
[368448784,1751181081075,-490.0,0.00028825,3]
[368448785,1751181081084,-490.0,0.00028825,3]
[368448786,1751181081094,-490.0,0.00028825,3]
[368448787,1751181081104,-750.37,0.00028825,3]
[368448788,1751181081114,-490.0,0.00028825,3]
[368448789,1751181081123,-490.0,0.00028825,3]
[368448790,1751181081134,-530.0,0.00028825,3]
[368448791,1751181081145,-490.0,0.00028825,3]
[368448792,1751181081154,-571.93,0.00028825,3]
[368448793,1751181081164,-704.67,0.00028825,3]
[368448794,1751181081173,-490.0,0.00028825,3]
[368448795,1751181081184,-1253.64,0.00028825,3]
[368448796,1751181081193,-1153.24,0.00028825,3]
[368448797,1751181081203,-490.0,0.00028825,3]
[368448798,1751181081213,-526.80666565,0.00028825,3]
[368448799,1751181081223,-896.43,0.00028825,3]
[368448800,1751181081232,-490.0,0.00028825,3]
[368448801,1751181081241,-199.82535444,0.00028825,3]
[368448802,1751181081251,-555.15,0.00028825,3]
[368448803,1751181081260,-490.0,0.00028825,3]
[368448804,1751181081270,-490.0,0.00028825,3]
[368448805,1751181081279,-511.46708669,0.00028825,3]
[368448806,1751181081289,-1094.33,0.00028825,3]
[368448807,1751181081298,-490.0,0.00028825,3]
[368448808,1751181081307,-2180.92,0.00028825,3]
[368448809,1751181081317,-490.0,0.00028825,3]
[368448810,1751181081327,-490.0,0.00028825,3]
[368448811,1751181081337,-252.80706333,0.00028825,3]
[368448812,1751181081347,-653.56,0.00028825,3]
[368448813,1751181081356,-490.0,0.00028825,3]
[368448814,1751181081366,-521.25,0.00028825,3]
[368448815,1751181081375,-631.87,0.00028825,3]
[368448816,1751181081384,-758.2,0.00028825,3]
[368448817,1751181081393,-747.42,0.00028825,3]
[368448818,1751181081403,-490.0,0.00028825,3]
[368448819,1751181081412,-490.0,0.00028825,3]
[368448820,1751181081421,-1528.85,0.00028825,3]
[368448821,1751181081431,-490.0,0.00028825,3]
[368448822,1751181081441,-2020.13,0.00028825,3]
[368448823,1751181081451,-490.0,0.00028825,3]
[368448824,1751181081461,-937.87,0.00028825,3]
[368448825,1751181081471,-2521.9,0.00028825,3]
[368448826,1751181081480,-688.19,0.00028825,3]
[368448827,1751181081490,-490.0,0.00028825,3]
[368448828,1751181081500,-490.0,0.00028825,3]
[368448829,1751181081510,-659.51,0.00028825,3]
[368448830,1751181081519,-1494.88,0.00028825,3]
[368448831,1751181081528,-490.0,0.00028825,3]
[368448832,1751181081537,-490.0,0.00028825,3]
[368448833,1751181081546,-490.0,0.00028825,3]
[368448834,1751181081556,-918.44,0.00028825,3]
[368448835,1751181081566,-1245.98,0.00028825,3]
[368448836,1751181081575,-490.0,0.00028825,3]
[368448837,1751181081585,-490.0,0.00028825,3]
[368448838,1751181081594,-2130.24,0.00028825,3]
[368448839,1751181081605,-490.0,0.00028825,3]
[368448840,1751181081615,-490.0,0.00028825,3]
[368448841,1751181081624,-1824.71,0.00028825,3]
[368448842,1751181081633,-490.0,0.00028825,3]
[368448843,1751181081642,-490.0,0.00028825,3]
[368448844,1751181081651,-819.07,0.00028825,3]
[368448845,1751181081661,-589.22064706,0.00028825,3]
[368448846,1751181081670,-539.39,0.00028825,3]
[368448847,1751181081679,-548.39,0.00028825,3]
[368448848,1751181081689,-2061.87,0.00028825,3]
[368448849,1751181081698,-226.57289344,0.00028825,3]
[368448850,1751181081707,-490.0,0.00028825,3]
[368448851,1751181081717,-158.454063,0.00028825,3]
[368448852,1751181081726,-2634.572186,0.00028825,3]
[368448853,1751181081735,-490.0,0.00028825,3]
[368448854,1751181081745,-490.0,0.00028825,3]
[368448855,1751181081754,-490.0,0.00028825,3]
[368448856,1751181081763,-151.887036,0.00028825,3]
[368448857,1751181081773,-441.285948,0.00028825,3]
[368448858,1751181081783,-1220.64,0.00028825,3]
[368448859,1751181081793,-490.0,0.00028825,3]
[368448860,1751181081802,-1533.93,0.00028825,3]
[368448861,1751181081812,-816.39,0.00028825,3]
[368448862,1751181081821,-727.54,0.00028825,3]
[368448863,1751181081831,-3529.094479,0.00028825,3]
[368448864,1751181081841,-725.22,0.00028825,3]
[368448865,1751181081851,-490.0,0.00028825,3]
[368448866,1751181081861,-537.42,0.00028825,3]
[368448867,1751181081870,-490.0,0.00028825,3]
[368448868,1751181081880,-1640.41,0.00028825,3]
[368448869,1751181081890,-3851.84049,0.00028825,3]
[368448870,1751181081900,-490.0,0.00028825,3]
[368448871,1751181081909,-490.0,0.00028825,3]
[368448872,1751181081919,-490.0,0.00028825,3]
[368448873,1751181081929,-936.2,0.00028825,3]
[368448874,1751181081938,-490.0,0.00028825,3]
[368448875,1751181081948,-490.0,0.00028825,3]
[368448876,1751181081958,-1388.66,0.00028825,3]
[368448877,1751181081967,-578.37,0.00028825,3]
[368448878,1751181081977,-490.0,0.00028825,3]
[368448879,1751181081987,-490.0,0.00028825,3]
[368448880,1751181081997,-490.0,0.00028825,3]
[368448881,1751181082008,-490.0,0.00028825,3]
[368448882,1751181082017,-1588.38,0.00028825,3]
[368448883,1751181082027,-490.0,0.00028825,3]
[368448884,1751181082037,-490.0,0.00028825,3]
[368448885,1751181082047,-217.58534114,0.00028825,3]
[368448886,1751181082057,-490.0,0.00028825,3]
[368448887,1751181082067,-1544.75,0.00028825,3]
[368448888,1751181082076,-490.0,0.00028825,3]
[368448889,1751181082085,-490.0,0.00028825,3]
[368448890,1751181082095,-515.96551693,0.00028825,3]
[368448891,1751181082104,-1423.04,0.00028825,3]
[368448892,1751181082113,-490.0,0.00028825,3]
[368448893,1751181082123,-490.0,0.00028825,3]
[368448894,1751181082132,-490.0,0.00028825,3]
[368448895,1751181082142,-490.0,0.00028825,3]
[368448896,1751181082151,-490.0,0.00028825,3]
[368448897,1751181082161,-490.0,0.00028825,3]
[368448898,1751181082170,-490.0,0.00028825,3]
[368448899,1751181082180,-490.0,0.00028825,3]
[368448900,1751181082189,-490.0,0.00028825,3]
[368448901,1751181082198,-619.04,0.00028825,3]
[368448902,1751181082208,-490.0,0.00028825,3]
[368448903,1751181082217,-490.0,0.00028825,3]
[368448904,1751181082226,-490.0,0.00028825,3]
[368448905,1751181082236,-490.0,0.00028825,3]
[368448906,1751181082246,-654.86,0.00028825,3]
[368448907,1751181082255,-490.0,0.00028825,3]
[368448908,1751181082265,-490.0,0.00028825,3]
[368448909,1751181082274,-664.59,0.00028825,3]
[368448910,1751181082283,-270.78751801,0.00028825,3]
[368448911,1751181082293,-490.0,0.00028825,3]
[368448912,1751181082303,-490.0,0.00028825,3]
[368448913,1751181082312,-490.0,0.00028825,3]
[368448914,1751181082322,-490.0,0.00028825,3]
[368448915,1751181082332,-408.87158192,0.00028825,3]
[368448916,1751181082341,-490.0,0.00028825,3]
[368448917,1751181082351,-490.0,0.00028825,3]
[368448918,1751181082364,-839.16,0.00028825,3]
[368448919,1751181082374,-490.0,0.00028825,3]
[368448920,1751181082384,-490.0,0.00028825,3]
[368448921,1751181082393,-490.0,0.00028825,3]
[368448922,1751181082402,-490.0,0.00028825,3]
[368448923,1751181082413,-490.0,0.00028825,3]
[368448924,1751181082423,-724.74,0.00028825,3]
[368448925,1751181082434,-1070.97,0.00028825,3]
[368448926,1751181082444,-490.0,0.00028825,3]
[368448927,1751181082455,-490.0,0.00028825,3]
[368448928,1751181082465,-490.0,0.00028825,3]
[368448929,1751181082475,-700.11,0.00028825,3]
[368448930,1751181082484,-3031.19,0.00028825,3]
[368448931,1751181082493,-521.81683,0.00028825,3]
[368448932,1751181082503,-490.0,0.00028825,3]
[368448933,1751181082512,-3018.42,0.00028825,3]
[368448934,1751181082522,-490.0,0.00028825,3]
[368448935,1751181082532,-1887.96,0.00028825,3]
[368448936,1751181082542,-490.0,0.00028825,3]
[368448937,1751181082551,-490.0,0.00028825,3]
[368448938,1751181082561,-490.0,0.00028825,3]
[368448939,1751181082570,-521.61,0.00028825,3]
[368448940,1751181082579,-2164.49,0.00028825,3]
[368448941,1751181082588,-490.0,0.00028825,3]
[368448942,1751181082597,-490.0,0.00028825,3]
[368448943,1751181082607,-490.0,0.00028825,3]
[368448944,1751181082619,-254.69793829,0.00028825,3]
[368448945,1751181082629,-2793.81,0.00028825,3]
[368448946,1751181082639,-490.0,0.00028825,3]
[368448947,1751181082648,-490.0,0.00028825,3]
[368448948,1751181082658,-490.0,0.00028825,3]
[368448949,1751181082667,-490.0,0.00028825,3]
[368448950,1751181082678,-490.0,0.00028825,3]
[368448951,1751181082687,-1102.9,0.00028825,3]
[368448952,1751181082696,-1020.61,0.00028825,3]
[368448953,1751181082706,-490.0,0.00028825,3]
[368448954,1751181082717,-490.0,0.00028825,3]
[368448955,1751181082727,-547.03,0.00028825,3]
[368448956,1751181082736,-490.0,0.00028825,3]
[368448957,1751181082746,-1495.57,0.00028825,3]
[368448958,1751181082756,-4316.74,0.00028825,3]
[368448959,1751181082766,-505.51571617,0.00028825,3]
[368448960,1751181082775,-490.0,0.00028825,3]
[368448961,1751181082785,-2192.05,0.00028825,3]
[368448962,1751181082795,-623.46,0.00028825,3]
[368448963,1751181082805,-490.0,0.00028825,3]
[368448964,1751181082815,-490.0,0.00028825,3]
[368448965,1751181082824,-3176.46,0.00028825,3]
[368448966,1751181082833,-2370.99,0.00028825,3]
[368448967,1751181082842,-551.2,0.00028825,3]
[368448968,1751181082851,-490.0,0.00028825,3]
[368448969,1751181082861,-490.0,0.00028825,3]
[368448970,1751181082871,-710.18,0.00028825,3]
[368448971,1751181082880,-490.0,0.00028825,3]
[368448972,1751181082889,-1001.86,0.00028825,3]
[368448973,1751181082899,-490.0,0.00028825,3]
[368448974,1751181082909,-4783.71,0.00028825,3]
[368448975,1751181082919,-4889.56,0.00028825,3]
[368448976,1751181082928,-490.0,0.00028825,3]
[368448977,1751181082938,-490.0,0.00028825,3]
[368448978,1751181082948,-2327.17,0.00028825,3]
[368448979,1751181082958,-490.0,0.00028825,3]
[368448980,1751181082967,-1207.77,0.00028825,3]
[368448981,1751181082977,-2329.6,0.00028825,3]
[368448982,1751181082986,-490.0,0.00028825,3]
[368448983,1751181082997,-3126.47,0.00028825,3]
[368448984,1751181083007,-1813.07,0.00028825,3]
[368448985,1751181083016,-490.0,0.00028825,3]
[368448986,1751181083026,-1724.24,0.00028825,3]
[368448987,1751181083036,-2630.42,0.00028825,3]
[368448988,1751181083046,-592.48752408,0.00028825,3]
[368448989,1751181083056,-490.0,0.00028825,3]
[368448990,1751181083066,-490.0,0.00028825,3]
[368448991,1751181083075,-490.0,0.00028825,3]
[368448992,1751181083084,-490.0,0.00028825,3]
[368448993,1751181083093,-702.81,0.00028825,3]
[368448994,1751181083103,-705.02,0.00028825,3]
[368448995,1751181083113,-4184.39,0.00028825,3]
[368448996,1751181083124,-490.0,0.00028825,3]
[368448997,1751181083134,-490.0,0.00028825,3]
[368448998,1751181083143,-490.0,0.00028825,3]
[368448999,1751181083153,-4515.26,0.00028825,3]
[368449000,1751181083162,-490.0,0.00028825,3]
[368449001,1751181083273,-490.0,0.00028825,3]
[368449002,1751181083283,-490.0,0.00028825,3]
[368449003,1751181083292,-616.84471797,0.00028825,3]
[368449004,1751181083302,-490.0,0.00028825,3]
[368449005,1751181083311,-2193.92,0.00028825,3]
[368449006,1751181083320,-5901.61,0.00028825,3]
[368449007,1751181083330,-805.14,0.00028825,3]
[368449008,1751181083339,-496.08706876,0.00028825,3]
[368449009,1751181083348,-490.0,0.00028825,3]
[368449010,1751181083357,-534.18,0.00028825,3]
[368449011,1751181083366,-1256.76,0.00028825,3]
[368449012,1751181083375,-490.0,0.00028825,3]
[368449013,1751181083385,-490.0,0.00028825,3]
[368449014,1751181083394,-219.18491454,0.00028825,3]
[368449015,1751181083403,-1430.48,0.00028825,3]
[368449016,1751181083412,-7371.36,0.00028825,3]
[368449017,1751181083421,-490.0,0.00028825,3]
[368449018,1751181083430,-3913.37,0.00028825,3]
[368449019,1751181083439,-490.0,0.00028825,3]
[368449020,1751181083448,-445.92955024,0.00028825,3]
[368449021,1751181083457,-490.0,0.00028825,3]
[368449022,1751181083467,-1295.18,0.00028825,3]
[368449023,1751181083476,-490.0,0.00028825,3]
[368449024,1751181083485,-490.0,0.00028825,3]
[368449025,1751181083495,-628.45,0.00028825,3]
[368449026,1751181083504,-604.51,0.00028825,3]
[368449027,1751181083514,-1438.03,0.00028825,3]
[368449028,1751181083523,-490.0,0.00028825,3]
[368449029,1751181083532,-753.59,0.00028825,3]
[368449030,1751181083541,-2631.78,0.00028825,3]
[368449031,1751181083550,-490.0,0.00028825,3]
[368449032,1751181083558,-167.36016629,0.00028832,2]